bitfinex-derivatives/quotes_ETHF0:USTF0_20250810
["timestamp","ask_amount","ask_price","bid_price","bid_amount"]
[1754828457766,3.10779,4188.4,4188.3,0.4526]
[1754828458072,3.10782,4188.1,4188.0,1.9789]
[1754828458273,3.64082,4188.1,4188.0,1.9789]
[1754828459171,2.56282,4188.1,4188.0,2.5091]
[1754828459366,0.47752,4188.1,4188.0,3.1712]
[1754828459579,1.69312,4188.1,4188.0,3.1712]
[1754828459781,2.56282,4188.1,4188.0,3.1712]
[1754828460480,1.29832,4188.1,4188.0,3.1712]
[1754828460682,0.96162,4188.1,4188.0,3.1712]
[1754828461281,0.47751,4188.2,4188.0,1.2803]
[1754828461486,0.96161,4188.2,4188.1,3.1712]
[1754828461887,0.4841,4188.2,4188.1,3.1712]
[1754828462083,1.19351,4189.2,4187.0,1.19411]
[1754828462084,0.533,4188.6,4188.4,1.8105]
[1754828462290,0.7315,4188.8,4188.7,1.2803]
[1754828462490,1.69304,4188.8,4188.7,3.1712]
[1754828462688,2.56274,4188.8,4188.7,3.1712]
[1754828462884,0.61878192,4189.0,4188.7,3.1712]
[1754828463085,0.533,4189.6,4189.0,0.6986]
[1754828463299,3.64065,4189.6,4189.5,2.5091]
[1754828464093,3.78119431,4189.6,4189.5,2.5091]
[1754828465087,0.47745,4188.8,4188.7,0.3572]
[1754828465281,1.9468,4188.4,4188.3,2.5015]
[1754828465478,3.1669,4188.4,4188.3,2.5015]
[1754828465683,3.1669,4188.4,4188.3,2.4742]
[1754828465885,3.1669,4188.4,4188.3,1.9713]
[1754828466085,3.1669,4188.4,4188.3,0.4478]
[1754828466381,1.2587,4188.2,4188.1,1.1482]
[1754828466589,3.1627,4188.2,4188.1,1.1482]
[1754828466785,3.1627,4188.2,4188.1,1.6309]
[1754828466985,3.1627,4188.2,4188.1,2.476]
[1754828469091,3.1627,4188.2,4188.1,1.9731]
[1754828469493,1.73625,4187.8,4187.7,1.2727]
[1754828469693,2.94695,4187.8,4187.7,1.9431]
[1754828469887,2.94695,4187.8,4187.5,1.28256234]
[1754828469888,1.68821,4188.2,4188.1,1.2727]
[1754828470088,1.16141,4188.2,4188.1,3.1464]
[1754828471095,1.64131,4188.2,4188.1,3.1464]
[1754828472390,1.904,4188.9,4188.2,1.2033]
[1754828472587,3.64013,4188.9,4188.8,2.476]
[1754828472786,3.64013,4188.9,4188.8,0.4478]
[1754828472983,3.64013,4188.9,4188.8,2.476]
[1754828473192,3.64013,4188.9,4188.8,1.1482]
[1754828473584,3.64013,4188.9,4188.8,0.4478]
[1754828473788,1.1935,4189.2,4188.5,2.476]
[1754828473789,1.73616,4188.6,4188.5,2.476]
[1754828473988,3.64016,4188.6,4188.5,2.476]
[1754828474994,3.64016,4188.6,4188.5,3.1464]
[1754828475494,3.64016,4188.6,4188.5,2.476]
[1754828476595,2.94686,4188.6,4188.5,3.1464]
[1754828476796,3.64016,4188.6,4188.5,3.1464]
[1754828476999,2.94686,4188.6,4188.5,3.1464]
[1754828477392,2.50116,4188.6,4188.5,3.1464]
[1754828477802,1.16135,4188.8,4188.5,1.2727]
[1754828477997,1.64125,4188.8,4188.7,3.1464]
[1754828478194,2.94685,4188.8,4188.7,3.1464]
[1754828478699,3.64015,4188.8,4188.7,3.1464]
[1754828479398,3.64015,4188.8,4188.7,2.476]
[1754828480797,0.47745,4188.8,4188.7,0.4478]
[1754828481098,0.47745,4188.8,4188.7,1.6511]
[1754828481300,1.16135,4188.8,4188.7,3.1464]
[1754828481497,1.64125,4188.8,4188.7,3.1464]
[1754828481694,1.97435,4188.8,4188.7,3.1464]
[1754828482098,2.50115,4188.8,4188.7,3.1464]
[1754828482300,2.94685,4188.8,4188.7,3.1464]
[1754828482500,0.6839,4188.8,4188.7,3.1464]
[1754828482799,0.6839,4188.8,4188.7,4.42896234]
[1754828483097,0.6839,4188.8,4188.7,3.1464]
[1754828483303,0.6839,4188.8,4188.7,4.42896234]
[1754828483804,3.1627,4188.9,4188.8,2.476]
[1754828484399,1.73615,4188.8,4188.7,2.71596234]
[1754828484598,1.73615,4188.8,4188.7,2.43076234]
[1754828484599,3.64015,4188.8,4188.7,2.43076234]
[1754828484795,3.64015,4188.8,4188.7,1.6309]
[1754828485103,3.64015,4188.8,4188.7,2.476]
[1754828485301,3.64015,4188.8,4188.7,3.75856234]
[1754828485494,3.64015,4188.8,4188.7,2.476]
[1754828485801,3.64015,4188.8,4188.7,1.9731]
[1754828486200,3.64015,4188.8,4188.7,3.25566234]
[1754828487101,3.64015,4188.8,4188.7,1.28256234]
[1754828489301,3.64015,4188.8,4188.7,2.43076234]
[1754828489897,3.64015,4188.8,4188.7,3.75856234]
[1754828490103,3.64015,4188.8,4188.7,3.1464]
[1754828491197,3.64015,4188.8,4188.7,2.476]
[1754828492903,3.64015,4188.8,4188.7,3.1464]
[1754828494106,3.64015,4188.8,4188.7,2.476]
[1754828495506,1.97435,4188.8,4188.7,3.1867]
[1754828495799,0.47745,4188.8,4188.7,3.1867]
[1754828496702,1.15045,4188.8,4188.7,3.1867]
[1754828498605,2.43175,4188.8,4188.7,3.1867]
[1754828498806,2.87355,4188.8,4188.7,3.1867]
[1754828499606,3.56025,4188.8,4188.7,3.1867]
[1754828499802,3.56025,4188.8,4188.7,2.476]
[1754828500002,3.56025,4188.8,4188.7,3.1867]
[1754828500906,3.56025,4188.8,4188.7,0.4478]
[1754828501206,2.87358,4188.5,4188.4,4.86498935]
[1754828501403,0.47748,4188.5,4188.4,3.1479]
[1754828501803,1.59218,4189.4,4189.3,0.4575]
[1754828502103,0.4418,4189.4,4189.3,1.2439]
[1754828502299,1.2289,4189.4,4189.3,2.4372]
[1754828502611,0.47737,4189.5,4189.4,2.4372]
[1754828502797,0.47737,4189.5,4189.4,3.1479]
[1754828502996,0.47736,4189.6,4189.4,3.1479]
[1754828503197,0.47736,4189.6,4189.5,3.1479]
[1754828503404,3.56016,4189.6,4189.5,3.1479]
[1754828503611,3.56016,4189.6,4189.5,2.4372]
[1754828504507,3.56016,4189.6,4189.5,3.72469418]
[1754828505911,3.56016,4189.6,4189.5,1.28749418]
[1754828506100,1.70626,4189.6,4189.4,1.28749418]
[1754828506304,3.0828,4189.5,4189.4,1.28749418]
[1754828508418,1.2289,4189.5,4189.4,1.1505]
[1754828508910,1.2289,4189.5,4189.4,2.4372]
[1754828509112,3.0828,4189.5,4189.4,2.4372]
[1754828510909,3.0828,4189.5,4189.4,1.9369]
[1754828511514,3.0828,4189.5,4189.4,2.4372]
[1754828512108,3.0828,4189.5,4189.4,1.9369]
[1754828512314,3.0828,4189.5,4189.4,0.4575]
[1754828513509,3.0828,4189.5,4189.4,2.4372]
[1754828513715,3.0828,4189.5,4189.4,1.1505]
[1754828513914,3.0828,4189.5,4189.4,0.4575]
[1754828514615,3.0828,4189.5,4189.4,1.1505]
[1754828515613,1.1932,4190.3,4189.8,1.2439]
[1754828515918,2.3961,4190.0,4189.9,3.1479]
[1754828516512,2.3961,4190.0,4189.9,2.4372]
[1754828516714,1.2289,4189.8,4189.7,1.1505]
[1754828517015,3.0828,4189.8,4189.7,2.4372]
[1754828517314,3.56013,4189.8,4189.7,2.4372]
[1754828518521,3.56013,4189.8,4189.7,3.1479]
[1754828518716,0.47732,4190.0,4189.8,1.904]
[1754828518920,0.47732,4190.0,4189.9,3.1479]
[1754828518921,1.75862,4190.0,4189.9,3.1479]
[1754828519322,1.9543,4190.0,4189.9,3.1479]
[1754828522423,1.1358,4190.1,4190.0,3.1479]
[1754828522619,1.65816,4190.4,4190.0,3.1479]
[1754828522825,1.1358,4190.5,4190.4,3.1479]
[1754828523225,0.673,4190.5,4190.4,3.1479]
[1754828523524,0.47722,4190.8,4190.6,1.2439]
[1754828523730,2.43152,4190.8,4190.7,3.1479]
[1754828523925,3.56002,4190.8,4190.7,2.4372]
[1754828525327,2.43158,4190.3,4190.2,3.1479]
[1754828526324,0.47728,4190.3,4190.2,3.1479]
[1754828526829,0.6728,4190.3,4190.2,3.1479]
[1754828527125,0.47728,4190.3,4189.9,1.28749418]
[1754828527327,0.47728,4190.3,4190.2,1.2314]
[1754828527526,1.15008,4190.3,4190.2,1.2314]
[1754828527729,1.59128,4190.3,4190.2,3.1353]
[1754828528033,1.92598,4190.3,4190.2,3.1353]
[1754828528331,2.43768,4190.3,4190.2,3.1353]
[1754828530022,3.55071,4190.0,4189.9,0.4542]
[1754828530526,3.55071,4190.0,4189.9,1.586]
[1754828530834,3.55071,4190.0,4189.9,2.433]
[1754828531828,3.55071,4190.0,4189.9,1.9094]
[1754828532133,3.55071,4190.0,4189.9,2.433]
[1754828532322,3.55071,4190.0,4189.9,3.71833874]
[1754828532831,1.68264,4189.7,4189.6,1.28533874]
[1754828533129,3.0734,4189.6,4189.5,1.28533874]
[1754828533330,1.1933,4190.0,4189.3,1.28533874]
[1754828533331,1.2053,4189.4,4189.3,1.28533874]
[1754828533630,3.0734,4189.4,4189.3,1.1322]
[1754828533930,2.3898,4189.4,4189.3,4.42073245]
[1754828534330,3.0734,4189.4,4189.3,3.71843245]
[1754828535632,3.0734,4189.4,4189.3,1.28543245]
[1754828535833,1.2053,4189.4,4189.2,1.28543245]
[1754828536031,1.6827,4189.2,4189.1,1.28543245]
[1754828536234,3.5508,4189.2,4189.1,1.28543245]
[1754828536729,3.5508,4189.2,4189.1,1.96343245]
[1754828536922,3.5508,4189.2,4189.1,2.41763245]
[1754828537127,3.5508,4189.2,4189.1,3.71843245]
[1754828537729,3.5508,4189.2,4189.1,3.19483245]
[1754828537935,3.5508,4189.2,4189.1,1.9094]
[1754828538228,0.47744,4188.9,4188.8,1.96343245]
[1754828538435,3.55084,4188.9,4188.8,2.41763245]
[1754828538622,3.55084,4188.9,4188.8,1.1322]
[1754828538822,3.55084,4188.9,4188.6,1.28543245]
[1754828538823,1.3564,4188.8,4188.6,1.28543245]
[1754828539028,3.55086,4188.7,4188.6,1.1322]
[1754828539530,3.55086,4188.7,4188.6,2.433]
[1754828540431,0.47746,4188.7,4188.6,3.1353]
[1754828540631,1.5914,4189.2,4189.1,3.1353]
[1754828540835,0.4774,4189.2,4189.1,3.1353]
[1754828541136,1.1502,4189.2,4189.1,3.1353]
[1754828542533,1.5914,4189.2,4189.1,3.1353]
[1754828542837,1.5914,4189.2,4189.1,4.41925255]
[1754828543038,1.59138,4189.4,4189.3,3.1353]
[1754828543336,3.03908,4189.4,4189.3,2.41605251]
[1754828543534,3.0734,4189.3,4189.2,1.28385251]
[1754828543731,2.3663,4189.2,4189.1,1.1322]
[1754828543931,3.5508,4189.2,4189.1,2.433]
[1754828544341,2.4378,4189.2,4189.1,3.1353]
[1754828544838,1.9261,4189.2,4189.1,3.1353]
[1754828545341,0.47738,4189.4,4189.1,1.2314]
[1754828545534,0.47737,4189.5,4189.3,2.51502607]
[1754828545740,0.6728,4189.6,4189.5,1.2314]
[1754828545942,0.6728,4189.6,4189.5,3.1353]
[1754828546135,0.47733,4189.9,4189.5,3.1353]
[1754828546443,0.47733,4189.9,4189.7,1.2314]
[1754828546444,0.6728,4189.9,4189.7,1.2314]
[1754828546632,1.114,4189.9,4189.8,3.1353]
[1754828546830,2.3898,4189.9,4189.8,2.433]
[1754828547031,3.0734,4189.9,4189.8,1.1322]
[1754828547430,3.0734,4189.9,4189.8,1.9094]
[1754828547636,3.0734,4189.9,4189.8,2.433]
[1754828547942,3.0734,4189.9,4189.8,0.4542]
[1754828548945,3.0734,4189.6,4189.5,3.19302607]
[1754828549137,3.0734,4189.6,4189.5,3.71662607]
[1754828549339,1.2876,4189.7,4189.6,3.1353]
[1754828549639,2.4006,4189.7,4189.6,1.9337]
[1754828549840,2.4006,4189.7,4189.6,1.2314]
[1754828550039,3.0734,4189.7,4189.6,1.2314]
[1754828550238,3.0734,4189.7,4189.6,2.433]
[1754828551139,2.3898,4189.7,4189.6,3.1353]
[1754828551333,1.4487,4189.7,4189.6,3.1353]
[1754828551534,1.15013,4189.8,4189.7,3.1353]
[1754828553136,2.43773,4189.8,4189.7,3.1353]
[1754828553349,2.86713,4189.8,4189.7,3.1353]
[1754828555044,2.3898,4189.8,4189.7,3.1353]
[1754828555242,0.47727,4190.4,4190.0,0.6465]
[1754828555547,3.51382,4190.8,4190.7,3.0409]
[1754828557341,3.51382,4190.8,4190.7,4.32452607]
[1754828557846,3.51382,4190.8,4190.7,3.63112607]
[1754828558346,3.51382,4190.8,4190.7,3.12852607]
[1754828559347,3.51382,4190.8,4190.7,1.8449]
[1754828560346,3.51382,4190.8,4190.7,2.3475]
[1754828560937,3.51382,4190.8,4190.7,1.8449]
[1754828561136,3.51385,4190.5,4190.4,2.3475]
[1754828563845,3.0366,4190.5,4190.4,2.3475]
[1754828564239,3.0366,4190.5,4190.4,3.0409]
[1754828564548,2.3432,4190.5,4190.4,3.0409]
[1754828564744,1.4202,4190.5,4190.4,3.0409]
[1754828565042,3.0366,4190.5,4190.4,2.3475]
[1754828566247,3.0366,4190.5,4190.4,3.0409]
[1754828566548,1.9152,4190.5,4190.4,3.0409]
[1754828566945,3.0366,4190.5,4190.4,2.3475]
[1754828567646,3.0366,4190.5,4190.4,3.0409]
[1754828567948,2.39245,4190.5,4190.4,3.0409]
[1754828568149,1.9152,4190.5,4190.4,3.0409]
[1754828568351,1.4202,4190.5,4190.4,3.0409]
[1754828568739,1.092,4190.7,4190.6,1.1984]
[1754828569044,1.092,4190.7,4190.6,3.0409]
[1754828569244,0.8991,4191.0,4190.9,1.1984]
[1754828569447,2.3924,4191.0,4190.9,3.0409]
[1754828569647,1.9152,4191.0,4190.9,3.0409]
[1754828569844,0.89908,4191.2,4191.1,1.1984]
[1754828570048,1.89738,4191.2,4191.1,3.0409]
[1754828570245,3.51378,4191.2,4191.1,3.0409]
[1754828571949,3.51378,4191.2,4191.1,2.3475]
[1754828575750,3.51378,4191.2,4191.1,3.63112607]
[1754828576255,3.51378,4191.2,4191.1,4.32452607]
[1754828577457,0.47718,4191.2,4191.1,3.0409]
[1754828577845,1.14728,4191.2,4191.1,3.0409]
[1754828578051,2.39238,4191.2,4191.1,3.0409]
[1754828578356,2.82038,4191.2,4191.1,3.0409]
[1754828579553,1.092,4191.2,4191.1,3.0409]
[1754828579759,0.6701,4191.2,4191.1,3.0409]
[1754828580354,2.74224,4191.5,4191.1,1.1984]
[1754828580556,2.24724,4191.5,4191.4,1.1984]
[1754828580757,2.66914,4191.5,4191.4,3.0409]
[1754828581461,3.49234,4191.5,4191.4,4.3271701]
[1754828581661,4.61374,4191.5,4191.4,3.6337701]
[1754828582160,4.61374,4191.5,4191.4,3.0409]
[1754828582361,4.61374,4191.5,4191.4,3.63376407]
[1754828582757,4.61374,4191.5,4191.4,4.32716407]
[1754828583061,4.61374,4191.5,4191.4,3.63376407]
[1754828583258,4.61374,4191.5,4191.4,1.28626407]
[1754828583566,2.75524,4191.5,4191.3,1.28626407]
[1754828583859,3.0366,4191.4,4191.3,1.28626407]
[1754828584660,1.65526,4191.3,4191.2,1.28626407]
[1754828584861,3.51376,4191.3,4191.2,1.28626407]
[1754828585551,1.7976,4190.9,4190.8,4.3741]
[1754828585751,1.7976,4190.9,4190.8,7.40758935]
[1754828585961,2.27481,4190.9,4190.8,7.40758935]
[1754828586160,2.294,4190.9,4190.8,7.87678935]
[1754828586357,2.294,4190.9,4190.8,6.1597]
[1754828587060,2.9606,4190.9,4190.8,1.848]
[1754828587259,2.9606,4190.9,4190.3,0.6575]
[1754828587260,0.4964,4190.4,4190.3,2.16688935]
[1754828587557,1.3828,4190.4,4190.3,2.9747]
[1754828587762,1.0605,4190.4,4190.3,2.9747]
[1754828588354,0.6276,4190.4,4190.3,2.9747]
[1754828588554,0.47724,4190.6,4190.4,1.7856]
[1754828588754,1.64724,4190.6,4190.5,1.1087]
[1754828588958,1.64724,4190.6,4190.5,2.9747]
[1754828589359,2.77124,4190.6,4190.5,2.9747]
[1754828589966,3.43784,4190.6,4190.5,2.3172]
[1754828591170,2.77124,4190.6,4190.5,2.9747]
[1754828591970,3.43784,4190.6,4190.5,2.9747]
[1754828596169,3.43784,4190.6,4190.5,2.3172]
[1754828596570,1.17,4190.5,4190.3,1.71708935]
[1754828596770,2.9606,4190.1,4190.0,1.71708935]
[1754828596970,2.9606,4190.1,4190.0,2.37598935]
[1754828597467,2.9606,4190.1,4190.0,2.82578935]
[1754828598872,2.9606,4190.1,4190.0,1.71708935]
[1754828599061,1.64734,4189.7,4189.6,2.90618935]
[1754828599264,3.43794,4189.7,4189.6,3.37538935]
[1754828599462,3.43794,4189.7,4189.6,4.03288935]
[1754828599667,2.77134,4189.7,4189.6,4.69178935]
[1754828599863,1.86014,4189.7,4189.6,4.69178935]
[1754828600472,1.86014,4189.7,4189.6,2.9747]
[1754828601271,0.47734,4189.7,4189.6,2.9747]
[1754828601476,1.10494,4189.7,4189.6,2.9747]
[1754828601667,1.53784,4189.7,4189.6,2.9747]
[1754828601974,1.10494,4189.7,4189.6,2.9747]
[1754828602673,1.53784,4189.7,4189.6,2.9747]
[1754828606280,0.6276,4190.5,4189.7,0.6589]
[1754828606476,2.77125,4190.5,4190.4,1.1891]
[1754828606671,3.43785,4190.5,4190.4,2.3172]
[1754828607781,3.43785,4190.5,4190.4,1.1087]
[1754828607981,1.23249,4190.2,4190.1,1.6583]
[1754828608183,3.43789,4190.2,4190.1,2.3172]
[1754828608682,3.43789,4190.2,4190.1,1.1087]
[1754828609085,3.43789,4190.2,4190.1,2.3172]
[1754828609683,2.9606,4190.2,4190.1,2.3172]
[1754828610181,1.7976,4190.2,4190.1,2.3172]
[1754828610384,1.3828,4190.4,4190.3,2.9747]
[1754828610585,2.9606,4190.4,4190.3,2.9747]
[1754828610773,2.9606,4190.4,4190.3,2.3172]
[1754828611879,0.6276,4190.8,4190.3,2.3172]
[1754828612084,1.59141832,4191.5,4190.5,1.1281]
[1754828612279,0.47718,4191.2,4190.6,1.1891]
[1754828612478,1.1,4191.5,4190.9,2.3172]
[1754828612479,3.4378,4191.0,4190.9,2.3172]
[1754828613081,2.9606,4191.0,4190.9,2.3172]
[1754828613590,0.47719,4191.1,4190.6,1.94219829]
[1754828613591,0.47721,4190.9,4190.7,1.28469829]
[1754828613782,2.9606,4190.8,4190.7,1.28469829]
[1754828613983,2.9606,4190.7,4190.6,1.94359829]
[1754828614286,2.9606,4190.7,4190.6,3.60189829]
[1754828615388,2.9606,4190.7,4190.6,2.3172]
[1754828615575,2.9606,4190.7,4190.2,2.19436935]
[1754828615576,0.47724,4190.6,4190.4,0.4615]
[1754828615780,2.9155,4190.5,4190.4,2.2953]
[1754828616180,2.9155,4190.5,4190.4,2.9619]
[1754828616789,2.9155,4190.5,4190.4,2.2953]
[1754828619790,2.9155,4190.5,4190.4,0.4042]
[1754828619980,2.9155,4190.5,4190.4,1.0663]
[1754828620179,2.9155,4190.5,4190.4,2.2953]
[1754828620389,2.9155,4190.5,4190.4,2.9619]
[1754828620694,1.367,4190.5,4190.4,2.9619]
[1754828621594,0.6519,4190.6,4190.4,1.64896]
[1754828621789,0.6519,4190.8,4190.6,0.47724]
[1754828621990,1.19231,4190.9,4190.8,2.9619]
[1754828622198,0.8803,4191.1,4191.0,2.9619]
[1754828622393,1.5322,4191.1,4191.0,4.24782288]
[1754828622688,1.9911,4191.1,4191.0,4.24782288]
[1754828623284,2.7266,4191.1,4191.0,4.24782288]
[1754828623489,3.3927,4191.1,4191.0,3.58122288]
[1754828624293,3.3927,4191.1,4191.0,2.2953]
[1754828625695,3.3927,4191.1,4191.0,2.9619]
[1754828627291,3.3927,4191.1,4191.0,2.2953]
[1754828627496,1.5322,4191.1,4191.0,4.24782288]
[1754828628604,1.1291,4191.1,4191.0,4.24782288]
[1754828628796,1.5322,4191.1,4191.0,4.24782288]
[1754828629099,1.055,4191.1,4191.0,4.24782288]
[1754828629300,0.6519,4191.3,4191.2,1.1717]
[1754828629494,1.1,4191.5,4191.4,2.9619]
[1754828629693,1.7519,4191.5,4191.4,4.24714069]
[1754828630099,2.155,4191.5,4191.4,4.24714069]
[1754828630301,4.0155,4191.5,4191.4,1.28524069]
[1754828630497,4.0155,4191.5,4191.4,4.24714069]
[1754828631000,1.7519,4191.5,4191.4,4.24714069]
[1754828631301,2.155,4191.5,4191.4,4.24714069]
[1754828632100,2.467,4191.5,4191.4,4.24714069]
[1754828632302,2.9259,4191.5,4191.4,2.9619]
[1754828632604,4.0155,4191.5,4191.4,2.2953]
[1754828632995,4.0155,4191.5,4191.4,2.9619]
[1754828634306,4.0155,4191.5,4191.4,2.2953]
[1754828635498,4.0155,4191.5,4191.4,2.9619]
[1754828636901,3.39265,4191.4,4191.3,2.81304069]
[1754828637106,3.39265,4191.4,4191.3,3.58054069]
[1754828639307,3.39265,4191.4,4191.3,2.2953]
[1754828639509,2.72655,4191.4,4191.3,2.9619]
[1754828639909,2.30305,4191.4,4191.3,2.9619]
[1754828640508,2.72655,4191.4,4191.3,1.8338]
[1754828640708,2.9155,4191.0,4190.9,4.01238935]
[1754828640905,1.8259,4191.0,4190.9,4.67898935]
[1754828641108,0.6519,4191.0,4190.9,4.67898935]
[1754828641411,0.47718,4191.2,4191.1,1.1717]
[1754828641709,1.7519,4191.5,4191.4,1.1717]
[1754828641907,1.7519,4191.5,4191.4,2.9619]
[1754828642806,2.467,4191.5,4191.4,2.9619]
[1754828643007,3.82654,4191.5,4191.4,2.9619]
[1754828643704,2.9259,4191.5,4191.4,2.9619]
[1754828643903,1.7519,4191.5,4191.4,2.9619]
[1754828644408,2.155,4191.5,4191.4,2.9619]
[1754828645006,2.6139,4191.5,4191.4,2.9619]
[1754828645406,2.9259,4191.5,4191.4,2.9619]
[1754828646207,1.1,4191.5,4191.4,2.9619]
[1754828646712,2.1463,4191.5,4191.4,2.9619]
[1754828647213,3.5424,4191.5,4191.4,4.67566174]
[1754828647407,3.971,4191.5,4191.4,4.67566174]
[1754828648415,3.971,4191.5,4191.4,4.00906174]
[1754828649509,3.971,4191.5,4191.4,1.71376174]
[1754828650418,3.971,4191.5,4191.4,2.31036174]
[1754828650613,1.63595,4191.4,4191.2,1.71376174]
[1754828650812,2.871,4191.3,4191.2,2.31036174]
[1754828651014,0.47715,4191.4,4191.2,2.31060235]
[1754828651213,3.34815,4191.4,4191.3,3.21841826]
[1754828651521,1.57715,4191.5,4191.3,4.58461826]
[1754828651718,1.7246,4191.5,4191.4,4.58461826]
[1754828652318,1.7246,4191.5,4191.4,2.8706]
[1754828654124,2.1463,4191.5,4191.4,2.8706]
[1754828654919,0.005,4191.9,4191.8,1.7948]
[1754828655123,0.005,4191.9,4191.8,19.20815771]
[1754828655422,0.005,4191.9,4191.8,23.66841399]
[1754828655622,0.005,4191.9,4191.8,25.81275854]
[1754828655813,0.005,4191.9,4191.8,25.63814455]
[1754828656016,0.005,4191.9,4191.8,23.4938]
[1754828656219,0.7302,4193.0,4192.9,1.33848]
[1754828656419,0.6246,4193.0,4192.9,1.33848]
[1754828656619,1.8043,4193.0,4192.9,1.33848]
[1754828657025,1.8043,4193.0,4192.9,1.93508]
[1754828657415,0.6246,4193.0,4192.9,2.26678]
[1754828657727,1.3683,4193.5,4193.4,1.4581]
[1754828657924,1.7969,4193.5,4193.4,2.74200194]
[1754828658225,2.871,4193.5,4193.3,1.28390194]
[1754828658430,1.1588,4193.5,4193.3,1.76083194]
[1754828658623,2.871,4193.4,4193.3,3.21893194]
[1754828659129,23.57124414,4194.8,4193.3,2.94583194]
[1754828659331,0.7302,4193.5,4193.4,0.5966]
[1754828659626,0.47685,4194.1,4193.3,1.28390194]
[1754828659827,0.7302,4193.4,4193.3,2.27694]
[1754828660223,0.7302,4193.4,4193.3,4.62919574]
[1754828660826,0.7302,4193.4,4193.3,1.7816]
[1754828661030,0.7302,4193.4,4193.3,1.4581]
[1754828661228,1.8043,4193.4,4193.3,1.4581]
[1754828661428,1.8043,4193.7,4193.6,1.4765]
[1754828661629,1.8043,4193.7,4193.6,2.0731]
[1754828661932,0.7302,4193.3,4193.2,4.62919574]
[1754828662119,1.19195,4194.7,4193.5,0.4769]
[1754828662327,1.19195,4194.7,4193.5,0.4338]
[1754828662328,1.8043,4193.6,4193.5,0.4338]
[1754828662525,1.8043,4193.4,4193.3,0.4338]
[1754828662925,1.8043,4193.4,4193.3,1.0304]
[1754828663131,1.8043,4193.4,4193.3,1.4581]
[1754828663734,1.8043,4193.4,4193.3,2.8706]
[1754828665235,1.8043,4193.4,4193.3,1.7816]
[1754828665435,1.8043,4193.4,4193.3,2.8706]
[1754828665733,1.1797,4193.4,4193.3,2.8706]
[1754828665938,1.8043,4193.4,4193.3,2.8706]
[1754828666434,1.1797,4193.4,4193.3,2.8706]
[1754828667434,1.8043,4193.4,4193.3,2.8706]
[1754828667630,1.8043,4193.3,4193.2,0.5966]
[1754828667937,1.20711,4193.6,4193.5,1.185]
[1754828668238,0.6246,4196.6,4193.7,0.615]
[1754828668529,2.97253879,4197.7,4196.5,0.47657]
[1754828668530,0.47644,4197.7,4196.5,0.47657]
[1754828668736,2.871,4196.9,4196.7,0.85265286]
[1754828668931,2.871,4196.7,4196.6,0.85265286]
[1754828669232,2.871,4196.4,4196.3,0.85101663]
[1754828669830,0.17100999,4197.8,4196.0,0.85101663]
[1754828669831,2.871,4196.1,4196.0,0.85101663]
[1754828670132,0.47656,4196.7,4196.1,0.47662]
[1754828670337,0.47656,4196.7,4196.0,0.5966]
[1754828670338,1.7122,4196.6,4196.0,0.5966]
[1754828670635,2.871,4196.2,4196.1,1.19648069]
[1754828670833,2.871,4196.2,4196.1,2.40808069]
[1754828671036,2.871,4196.2,4196.1,1.79308069]
[1754828671235,1.2627,4197.7,4196.3,0.5966]
[1754828671437,1.7122,4198.4,4196.4,0.81156069]
[1754828671636,1.1588,4196.6,4196.5,1.19648069]
[1754828671837,2.871,4196.6,4196.5,0.33498069]
[1754828672744,2.4215,4195.9,4195.8,1.5575]
[1754828672937,2.871,4195.9,4195.8,0.76215131]
[1754828673137,2.871,4195.9,4195.8,0.33445131]
[1754828673732,2.871,4195.9,4195.8,1.89195131]
[1754828673935,0.6246,4196.1,4196.0,0.4338]
[1754828674141,0.6246,4196.1,4196.0,2.50695131]
[1754828674354,1.3548,4196.1,4196.0,2.50695131]
[1754828674536,2.871,4196.1,4196.0,0.33445131]
[1754828675138,2.871,4196.1,4196.0,1.89195131]
[1754828675440,2.871,4196.1,4196.0,1.79255131]
[1754828675743,2.871,4196.1,4196.0,0.33445131]
[1754828676833,2.9675,4194.9,4194.8,2.1784]
[1754828677034,2.9675,4194.9,4194.8,1.5509]
[1754828677438,2.9675,4194.9,4194.8,2.1784]
[1754828678035,1.7617,4195.4,4194.9,0.9984]
[1754828678241,2.3463,4194.8,4194.7,2.65517]
[1754828678540,2.9675,4194.8,4194.7,2.1784]
[1754828679233,1.373,4195.1,4195.0,1.18]
[1754828679439,1.827,4195.1,4195.0,2.1784]
[1754828679739,1.373,4194.4,4194.3,2.7959]
[1754828680339,1.827,4194.4,4194.3,2.7959]
[1754828680536,2.9675,4194.4,4194.3,2.7959]
[1754828680946,1.827,4194.4,4194.3,2.7959]
[1754828681238,2.9675,4194.4,4194.3,2.1784]
[1754828681446,2.9675,4194.4,4194.3,2.7959]
[1754828681747,2.9675,4194.4,4194.3,2.1784]
[1754828681941,1.8677,4194.1,4194.0,0.7568]
[1754828682142,2.9675,4194.1,4194.0,1.18]
[1754828682434,2.9675,4194.1,4193.9,0.85101663]
[1754828682435,1.7617,4194.0,4193.9,0.85101663]
[1754828682745,1.2058,4193.6,4193.5,0.85101663]
[1754828682940,1.1921,4194.2,4193.4,0.85101663]
[1754828682941,3.44441,4193.5,4193.4,0.85101663]
[1754828683136,0.6458,4193.4,4193.2,1.28165574]
[1754828683343,2.9675,4193.4,4193.3,0.8544]
[1754828683542,2.9675,4193.4,4193.3,2.1784]
[1754828684244,1.827,4193.4,4193.3,4.07755574]
[1754828684546,0.47691,4193.5,4193.4,2.7959]
[1754828685142,0.47691,4193.5,4193.4,4.07755574]